[Event "40th Cappelle Open 2024"]
[Site "Cappelle-la-Grande"]
[Date "2024.03.05"]
[Round "5.15"]
[White "Firat, Burak"]
[Black "Bauduin, Etienne"]
[Result "1-0"]
[ECO "D05"]
[WhiteElo "2439"]
[BlackElo "2191"]
[Annotator "TA"]
[PlyCount "65"]
[EventDate "2024.03.02"]
[EventType "swiss"]
[EventCountry "FRA"]
[SourceTitle "playchess.com"]
[Source "ChessBase"]
[SourceQuality "1"]
[TimeControl "40/5400+30:1800+30"]

{[%evp 9,65,8,16,0,6,0,-3,-14,-7,-16,-8,-8,20,7,6,0,14,5,0,0,0,-20,0,0,6,-61,0,0,-2,-12,2,-55,-33,-76,-68,-38,-9,-17,85,83,86,77,127,130,156,102,140,123,152,120,168,118,200,200,355,349,363,363]} 1. Nf3 {[%emt 0:00:22]} d5 {[%emt 0:00:43]} 2. e3 {[%emt 0:00:57]} Nf6 {[%emt 0:00:25]} 3. b3 {[%emt 0:00:12]} e6 {[%emt 0:02:56]} 4. Bb2 {[%emt 0:00:20]} Bd6 {[%emt 0:00:44]} 5. d4 {[%emt 0:07:30]} O-O {[%emt 0:01:18]} 6. Nbd2 {[%emt 0:01:55]} b6 {[%emt 0:01:04]} 7. g3 {[%emt 0:08:45]} c5 {[%emt 0:06:22]} 8. dxc5 {[%emt 0:04:57] The position is equal.} Bxc5 {[%emt 0:04:14]} 9. Bg2 {[%emt 0:00:32]} Nc6 {[%emt 0:10:55]} 10. O-O {[%emt 0:06:51]} a5 {[%emt 0:04:53]} 11. c4 {[%emt 0:03:52]} Ba6 {[%emt 0:01:58]} 12. Qc2 {[%emt 0:07:14]} Qe7 {[%emt 0:20:13]} 13. Rfd1 {[%emt 0:03:24]} (13. Ng5 {feels hotter.} Nb4 14. Qb1 g6 15. Rd1) 13... Rfd8 {[%emt 0:01:43]} 14. a3 {[%emt 0:05:32]} Rac8 {[%emt 0:04:31]} 15. cxd5 {[%emt 0:15:27]} exd5 {[%emt 0:15:52][%cal Be6d5,Bd5d4][%mdl 32]} 16. Qf5 {[%emt 0:04:00]} d4 {[%emt 0:05:24]} 17. e4 {[%emt 0:00:12]} (17. b4 $11 axb4 18. axb4 Nxb4 19. Nxd4) 17... Qd7 {[%emt 0:00:57]} (17... Nd7 $15) 18. Qxd7 $11 {[%emt 0:11:13]} Nxd7 {[%emt 0:00:06]} 19. Bh3 {[%emt 0:00:41]} Rb8 {[%emt 0:01:29]} 20. Rdc1 {[%emt 0:05:59]} (20. Bf1 $11 Bxf1 21. Kxf1) 20... Nde5 $15 {[%emt 0:01:41]} 21. Ne1 {[%emt 0:00:03]} h5 {[%emt 0:00:53]} (21... d3 {with more complications.} 22. Bf1 g5 23. Nef3 Nxf3+ 24. Nxf3 g4) 22. Bf1 {[%emt 0:02:10]} Bxf1 {[%emt 0:00:40]} 23. Kxf1 {[%emt 0:00:02]} g5 {[%emt 0:02:16]} (23... d3 $11 {remains equal.}) 24. f4 $16 {[%emt 0:00:29]} gxf4 {[%emt 0:00:34]} 25. gxf4 {[%emt 0:00:02]} Ng6 {[%emt 0:03:24]} (25... Nd7 $142) 26. Nd3 {[%emt 0:00:05]} Rbc8 {[%emt 0:00:37]} 27. Ke2 {[%emt 0:03:40]} (27. Nxc5 $142 bxc5 28. Rxc5 (28. f5 Nf4 $11) 28... Nxf4 29. Rac1) 27... Bd6 {[%emt 0:01:44]} 28. Rg1 {[%emt 0:00:10] Black must now prevent f5.} Kf8 {[%emt 0:00:27] [#]} 29. Raf1 {[%emt 0:00:50]} Be7 {[%emt 0:01:09] Inhibits Rg5.} (29... a4 $16 {was necessary.}) 30. Kd1 {[%emt 0:01:29]} ({Better is} 30. Nc4 $18) 30... Bf6 {[%emt 0:01:27]} (30... a4 $16 {might work better.}) 31. Nc4 $18 {[%emt 0:01:22]} Bg7 $2 {[%emt 0:01:23]} (31... b5) 32. Rg5 {[%emt 0:00:23]} ({Less strong is} 32. Nxb6 Rb8 $18) 32... h4 {[%emt 0:01:45]} 33. a4 {[%emt 0:02:11] Weighted Error Value: White=0.16 (very precise) /Black=0.32.  Mistake:       	White=4     	Black=6      Inaccurate:     	White=1     	Black=4      OK:         	White=12    	Black=8      Best:        	White=2     	Black=1} ({Weaker is} 33. Nxb6 Rb8 $18) 1-0

[Event "40th Cappelle Open 2024"]
[Site "Cappelle-la-Grande"]
[Date "2024.03.05"]
[Round "5.16"]
[White "Lesueur, Gabriel"]
[Black "Tarhan, Adar"]
[Result "0-1"]
[ECO "B34"]
[WhiteElo "2207"]
[BlackElo "2432"]
[Annotator "TA"]
[PlyCount "56"]
[EventDate "2024.03.02"]
[EventType "swiss"]
[EventCountry "FRA"]
[SourceTitle "playchess.com"]
[Source "ChessBase"]
[SourceQuality "1"]
[TimeControl "40/5400+30:1800+30"]

{[%evp 17,56,0,16,0,0,0,0,0,0,0,14,11,14,10,42,8,20,0,39,-26,-16,-25,-17,-237,-227,-582,-596,-872,-866,-902,-900,-858,-846,-29975,-29976,-29975,-29977,-29994,-29989,-29989,-29990]} 1. e4 {[%emt 0:00:02]} c5 {[%emt 0:08:12]} 2. Nf3 {[%emt 0:01:57]} Nc6 {[%emt 0:00:52]} 3. Nc3 {[%emt 0:00:05]} g6 {[%emt 0:00:07]} 4. d4 {[%emt 0:01:37]} cxd4 {[%emt 0:00:05]} 5. Nxd4 {[%emt 0:00:03]} Bg7 {[%emt 0:00:07]} 6. Be3 {[%emt 0:00:39]} Nf6 {[%emt 0:00:06]} 7. Nxc6 {[%emt 0:07:37]} bxc6 {[%emt 0:00:14]} 8. e5 {[%emt 0:00:02]} Ng8 {[%emt 0:00:06]} 9. f4 {[%emt 0:00:02]} Nh6 {[%emt 0:00:17] Black is weak on the dark squares} 10. h3 {[%emt 0:00:04]} Rb8 {[%emt 0:00:04]} 11. Qd2 {[%emt 0:00:04]} ({Much weaker is} 11. Bxa7 Rxb2 12. Qd2 d6 $15) 11... Rxb2 {[%emt 0:00:07]} 12. Na4 {[%emt 0:00:03] The position is equal.} Rb8 {[%emt 0:00:11]} 13. Bxa7 {[%emt 0:01:36]} Qc7 {[%emt 0:00:06]} 14. Bxb8 {[%emt 0:11:54]} Qxb8 {[%emt 0:00:25]} 15. O-O-O {[%emt 0:30:14]} O-O {[%emt 0:13:21][%cal Od7d6]} 16. Bc4 {[%emt 0:03:54] Threatening g4.} Nf5 {[%emt 0:03:38]} 17. g4 {[%emt 0:09:42]} d5 {[%emt 0:00:04]} 18. gxf5 {[%emt 0:07:08]} (18. Bb3 $1 $14) 18... dxc4 $11 {[%emt 0:00:11]} 19. fxg6 {[%emt 0:02:31]} fxg6 {[%emt 0:00:05]} 20. Rhf1 $2 {[%emt 0:00:43] [#] Now White is beyond hope.} (20. Qc3 $11) 20... Bxh3 {[%emt 0:01:07]} 21. Rf2 {[%emt 0:09:57]} (21. Rfe1 Bg4 22. Qc3) 21... Qa7 $19 {[%emt 0:00:08]} 22. Rh2 {[%emt 0:03:51]} Bh6 {[%emt 0:00:38]} ({Weaker is} 22... Qxa4 23. Rxh3 $17) 23. Rxh3 {[%emt 0:07:31]} Bxf4 {[%emt 0:00:05]} 24. Qxf4 {[%emt 0:00:08]} Rxf4 {[%emt 0:00:04]} 25. Nb2 {[%emt 0:00:53]} Qxa2 {[%emt 0:00:16] Black mates.} 26. Rd8+ {[%emt 0:00:04]} Kg7 {[%emt 0:00:14]} 27. Rb8 {[%emt 0:00:07]} Qa1+ {[%emt 0:00:49]} 28. Kd2 {[%emt 0:00:08]} Rf2+ {[%emt 0:00:16] Weighted Error Value: White=0.99/Black=0.06 (flawless) .  Loses game:     	White=1     	---        Mistake:       	White=2     	---        Inaccurate:     	White=1     	Black=1      OK:         	White=5     	Black=3      Best:        	White=2     	Black=2} 0-1

[Event "40th Cappelle Open 2024"]
[Site "Cappelle-la-Grande"]
[Date "2024.03.05"]
[Round "5.17"]
[White "Enchev, Ivajlo"]
[Black "Feryn, Benjamin"]
[Result "1-0"]
[ECO "A41"]
[WhiteElo "2425"]
[BlackElo "2182"]
[Annotator "TA"]
[PlyCount "97"]
[EventDate "2024.03.02"]
[EventType "swiss"]
[EventCountry "FRA"]
[SourceTitle "playchess.com"]
[Source "ChessBase"]
[SourceQuality "1"]
[TimeControl "40/5400+30:1800+30"]

{[%evp 21,97,-22,37,-8,19,-5,-6,-20,-16,-24,-19,-18,-20,-11,-15,-16,-28,-12,-11,-86,-86,-91,-95,-86,-87,-154,-139,-113,183,183,182,180,163,102,104,58,87,65,87,87,81,56,57,53,53,53,68,50,75,62,94,0,74,79,79,79,71,65,137,120,238,130,242,191,234,140,146,0,252,0,244,0,237,158,353,318,310,302]} 1. d4 {[%emt 0:00:12]} g6 {[%emt 0:00:23]} 2. Nf3 {[%emt 0:00:12]} Bg7 {[%emt 0:00:09]} 3. Bf4 {[%emt 0:00:22]} d6 {[%emt 0:00:27]} 4. Nc3 {[%emt 0:00:24]} Nd7 {[%emt 0:00:37]} 5. e4 {[%emt 0:01:12]} e5 {[%emt 0:03:54]} 6. Bg5 {[%emt 0:01:22]} Ngf6 {[%emt 0:00:51]} 7. Bc4 {[%emt 0:06:25]} O-O {[%emt 0:07:46]} 8. O-O {[%emt 0:00:08]} h6 {[%emt 0:14:12]} 9. Bh4 {[%emt 0:03:36]} exd4 {[%emt 0:11:00]} 10. Nxd4 {[%emt 0:00:47]} c6 {[%emt 0:00:19]} 11. a4 {[%emt 0:09:12]} Nc5 {[%emt 0:04:33]} (11... Qb6 $11) 12. Re1 {[%emt 0:13:16]} Re8 {[%emt 0:01:26]} (12... Qb6 $5 13. Nb3 Ncxe4 $15) 13. Nb3 {[%emt 0:03:25]} Nxb3 {[%emt 0:07:00]} 14. cxb3 {[%emt 0:07:32]} Be6 {[%emt 0:03:18]} 15. a5 {[%emt 0:01:57]} g5 {[%emt 0:04:43]} 16. Bg3 {[%emt 0:02:31]} d5 {[%emt 0:00:10]} 17. exd5 {[%emt 0:00:56]} Nxd5 {[%emt 0:03:27]} 18. Nxd5 {[%emt 0:03:23]} cxd5 {[%emt 0:01:17]} 19. Bb5 {[%emt 0:01:23]} Bd7 {[%emt 0:03:17]} 20. Qxd5 {[%emt 0:08:58]} (20. Rxe8+ $1 $11 {keeps the balance.} Qxe8 21. Bf1) 20... Rxe1+ $17 {[%emt 0:09:57]} 21. Rxe1 {[%emt 0:00:50]} Qxa5 {[%emt 0:02:39]} 22. Re7 {[%emt 0:00:10]} Be6 {[%emt 0:00:10]} 23. Qxb7 {[%emt 0:05:00]} (23. Rxe6 $142 fxe6 24. Qxe6+ Kh8 25. Bc4) 23... Rd8 $17 {[%emt 0:00:16]} 24. Bf1 {[%emt 0:04:13]} Bf6 $2 {[%emt 0:01:03][%mdl 8192]} (24... Rd1 $17 {and life is bright. aiming for ...Bf8.} 25. Qa8+ (25. Qxa7 $2 Qxa7 26. Rxa7 Bf5 $19) 25... Kh7 26. Qe4+ (26. Qxa7 $2 Qb5 27. h3 Qxf1+ 28. Kh2 Qh1#) 26... Qf5) 25. Bc7 $18 {[%emt 0:01:06]} (25. Qxa7 Qe1 $17) 25... Qd5 {[%emt 0:08:53]} 26. Bxd8 {[%emt 0:00:11]} (26. Qxa7 $2 Ra8 (26... Bxe7 $2 27. Bxd8 Bxd8 28. h4 $19) 27. Bg3 Rxa7 28. Rxa7 Qxb3 29. Ra8+ Kg7 $19) 26... Qxd8 {[%emt 0:00:07] [#]} 27. Rxe6 {[%emt 0:02:00]} ({White should try} 27. Rc7 $1 $18) 27... fxe6 $16 {[%emt 0:00:06]} 28. Qxa7 {[%emt 0:00:03]} (28. Qe4 $16) 28... Bxb2 {[%emt 0:05:27]} 29. Qe3 {[%emt 0:00:06]} Qf6 {[%emt 0:00:40]} 30. Bc4 {[%emt 0:00:41]} Kf7 {[%emt 0:00:18]} 31. g3 {[%emt 0:00:22]} Bd4 {[%emt 0:02:20]} 32. Qe2 {[%emt 0:00:21]} Qe5 {[%emt 0:00:52]} 33. Qc2 {[%emt 0:00:51]} Ke7 {[%emt 0:02:14]} 34. Kg2 {[%emt 0:00:53]} Kd6 {[%emt 0:02:58]} 35. Bd3 {[%emt 0:01:07]} (35. Qd2 {with more complications.} h5 36. Qb4+ Kc6 37. Be2) 35... Bc5 {[%emt 0:00:30]} 36. Bc4 {[%emt 0:02:07]} ({Better is} 36. Bg6 $16) 36... Qd4 {[%emt 0:00:37]} (36... Bd4 $1 $11) 37. f3 $16 {[%emt 0:03:43]} h5 {[%emt 0:00:16]} 38. Qg6 {[%emt 0:01:51]} Qb2+ {[%emt 0:00:45]} 39. Kh3 {[%emt 0:00:34]} Bg1 {[%emt 0:00:18]} (39... Qe5 $1 $14) 40. Qxe6+ $16 {[%emt 0:00:26]} Kc5 {[%emt 0:00:35]} (40... Kc7 $16 {might work better.} 41. Be2 g4+ 42. Kh4 (42. fxg4 hxg4+ 43. Qxg4 Qxb3 $18) 42... gxf3 43. Qe7+ (43. Bxf3 Qxh2+ 44. Qh3 Qb2 $11) 43... Kc6 44. Bxf3+ Kb5) 41. Qe7+ {[%emt 0:33:21]} ({White should play} 41. Qd5+ $18 Kb6 42. Qd6+ (42. Qxg5 $2 Qxh2#) 42... Kb7 43. Bd5+ Kc8 44. Be6+ Kb7 45. Qe7+ Kc6 46. Qd7+ (46. Qxg5 $2 Qxh2#) 46... Kc5 47. Qc7+ Kb4 48. Qe7+ Kc3 49. Qg7+ (49. Qxg5 $2 Qxh2#) 49... Kc2 50. Qxg5) 41... Kb6 {[%emt 0:01:27]} (41... Kc6 $16 42. Qe8+ (42. Qxg5 $2 Qxh2#) 42... Kc7 43. Qe7+ (43. Qxh5 Qxh2+ 44. Kg4 Qxh5+ 45. Kxh5 Be3 $18) 43... Kc6 44. Qe6+ (44. Qxg5 $2 Qxh2#) 44... Kc7 45. Qe7+ Kc6) 42. Qd8+ {[%emt 0:00:00]} (42. Qxg5 $2 Qxh2#) 42... Kb7 {[%emt 0:02:42]} 43. Bd5+ {[%emt 0:00:00]} (43. Qxg5 $2 Qxh2#) (43. Qd7+ $18 Kb6 44. Qd6+ Kb7 45. Bd5+ Kc8 46. Be6+ Kb7 47. Qe7+ Kc6 48. Qd7+ (48. Qxg5 $2 Qxh2#) 48... Kc5 49. Qc7+ Kb4 50. Qe7+ Kc3 51. Qf6+ (51. Qxg5 $2 Qxh2#) 51... Kc2 52. Qxg5) 43... Ka6 $16 {[%emt 0:01:14]} 44. Bc4+ {[%emt 0:00:00]} (44. Qxg5 $2 Qxh2#) (44. Qc8+ $16 Kb6 45. Qc6+ Ka5 46. Qc7+ Kb4 47. Qe7+ Kb5 48. Qd7+ (48. Qxg5 $2 Qxh2#) 48... Ka5 49. Qc7+ Kb4 50. Qe7+ Kb5 51. Bc4+ (51. Qxg5 $2 Qxh2#) 51... Kc6 52. Qe6+ (52. Qxg5 $2 Qxh2#) 52... Kc7 53. Be2) 44... Kb7 $18 {[%emt 0:00:18]} 45. Qe7+ {[%emt 0:00:00]} (45. Qxg5 $2 Qxh2#) 45... Kb6 $1 {[%emt 0:02:03]} 46. Qe6+ {[%emt 0:00:00]} (46. Qxg5 $2 Qxh2#) 46... Kc5 $1 {[%emt 0:01:27]} 47. Qf5+ {[%emt 0:00:00]} Kb4 $2 {[%emt 0:01:18]} (47... Kb6 $16 48. Qg6+ (48. Qxg5 $2 Qxh2#) 48... Kc7 49. Qh7+ (49. Qxg5 $2 Qxh2#) 49... Kd6 50. Qxh5 Qxh2+ 51. Kg4 Qxh5+ 52. Kxh5 Be3) 48. Qb5+ {[%emt 0:00:00]} (48. Qxg5 $2 Qxh2#) 48... Kc3 {[%emt 0:00:08]} 49. Qe5+ {[%emt 0:00:00]} (49. Qxg5 $2 Qxh2#) 1-0

[Event "40th Cappelle Open 2024"]
[Site "Cappelle-la-Grande"]
[Date "2024.03.05"]
[Round "5.18"]
[White "Loiseau, Quentin"]
[Black "De Villers, Mourad"]
[Result "1-0"]
[ECO "B75"]
[WhiteElo "2412"]
[BlackElo "2170"]
[Annotator "TA"]
[PlyCount "41"]
[EventDate "2024.03.02"]
[EventType "swiss"]
[EventCountry "FRA"]
[SourceTitle "playchess.com"]
[Source "ChessBase"]
[SourceQuality "1"]
[TimeControl "40/5400+30:1800+30"]

{[%evp 12,41,51,43,75,72,82,83,101,100,111,103,113,111,133,175,159,155,184,156,357,347,610,628,676,721,784,710,808,808,829,829]} 1. e4 {[%emt 0:00:13]} c5 {[%emt 0:00:15]} 2. Nf3 {[%emt 0:00:24]} d6 {[%emt 0:00:57]} 3. d4 {[%emt 0:00:19]} cxd4 {[%emt 0:00:09]} 4. Nxd4 {[%emt 0:00:07]} Nf6 {[%emt 0:00:07]} 5. Nc3 {[%emt 0:00:04]} g6 {[%emt 0:00:18]} 6. Be3 {[%emt 0:00:07]} Bg7 {[%emt 0:00:29]} 7. f3 {[%emt 0:00:08]} Nbd7 {[%emt 0:01:51]} 8. g4 {[%emt 0:06:38][%cal Bg2g4,Bg4g5][%mdl 32]} a6 {[%emt 0:02:55]} 9. h4 {[%emt 0:10:13][%cal Bh2h4,Bh4h5,Bh5h6][%mdl 32]} b5 {[%emt 0:24:26] White is better.} 10. h5 {[%emt 0:03:51]} Bb7 {[%emt 0:03:07] Prevents Nc6.} 11. h6 {[%emt 0:02:54]} Bf8 {[%emt 0:00:05]} 12. g5 $36 {[%emt 0:00:04][%mdl 2048] Keeping Black busy.} Nh5 {[%emt 0:01:02] [#]} 13. Rxh5 $1 {[%emt 0:01:18][%mdl 512]} gxh5 {[%emt 0:00:11]} 14. f4 {[%emt 0:01:42][%cal Oc3d5] White is much more active.} Qa5 {[%emt 0:18:37]} 15. Qxh5 {[%emt 0:01:59] Bh3 would now be deadly.} Bxe4 $2 {[%emt 0:03:11]} (15... Rc8 $16 {was called for.}) 16. Nb3 $18 {[%emt 0:06:33]} Qc7 {[%emt 0:07:45]} (16... Bg6) 17. Nxe4 {[%emt 0:00:29] White is clearly winning.} Qxc2 {[%emt 0:00:22] Black is weak on the dark squares} 18. Qf3 {[%emt 0:01:01][%cal Oe4d6] Black must now prevent Nxd6+!} d5 {[%emt 0:00:24]} 19. Nc3 {[%emt 0:01:20] A dynamic duo of knights.} e6 {[%emt 0:01:10]} 20. Bd4 {[%emt 0:00:23]} Rg8 {[%emt 0:01:17]} 21. Bd3 {[%emt 0:00:07] White took control after the opening.   Weighted Error Value: White=0.04 (flawless) /Black=0.74.  Loses game:     	---       	Black=1      Mistake:       	---       	Black=1      OK:         	White=6     	Black=2      Best:        	White=2     	---} 1-0

[Event "40th Cappelle Open 2024"]
[Site "Cappelle-la-Grande"]
[Date "2024.03.06"]
[Round "6.1"]
[White "Barp, Alberto"]
[Black "Puranik, Abhimanyu"]
[Result "1/2-1/2"]
[ECO "E15"]
[WhiteElo "2449"]
[BlackElo "2618"]
[Annotator "TA"]
[PlyCount "64"]
[EventDate "2024.03.02"]
[EventType "swiss"]
[EventCountry "FRA"]
[SourceTitle "playchess.com"]
[Source "ChessBase"]
[SourceQuality "1"]
[TimeControl "40/5400+30:1800+30"]

{[%evp 18,64,16,0,0,0,4,0,0,0,0,-28,-37,-37,0,0,0,0,29,40,47,55,45,8,29,1,0,0,0,0,0,0,0,0,-2,-6,-5,-6,0,0,0,0,0,0,8,8,0,0,0]} 1. d4 {[%emt 0:05:13]} Nf6 {[%emt 0:00:09]} 2. c4 {[%emt 0:00:14]} e6 {[%emt 0:00:04]} 3. Nf3 {[%emt 0:00:21]} b6 {[%emt 0:00:37]} 4. g3 {[%emt 0:00:16]} Ba6 {[%emt 0:00:06]} 5. b3 {[%emt 0:00:22]} Bb4+ {[%emt 0:00:28]} 6. Bd2 {[%emt 0:00:06]} Be7 {[%emt 0:00:05]} 7. Bg2 {[%emt 0:04:51]} O-O {[%emt 0:00:29]} 8. O-O {[%emt 0:01:15]} d5 {[%emt 0:00:05]} 9. cxd5 {[%emt 0:03:21]} exd5 {[%emt 0:00:06]} 10. Nc3 {[%emt 0:00:17]} Nbd7 {[%emt 0:00:41]} 11. Nh4 {[%emt 0:15:25][%cal Bf3h4,Bh4f5,Bf5e3][%mdl 32]} Re8 {[%emt 0:07:57]} 12. Nf5 {[%emt 0:06:50]} Bb4 {[%emt 0:05:03] [#] ...Bxc3 ist eine echte Drohung.} 13. Ne3 {[%emt 0:10:20]} c6 {[%emt 0:03:10]} 14. a3 {[%emt 0:03:14]} Bxc3 {[%emt 0:07:54]} 15. Bxc3 {[%emt 0:00:06]} Ng4 {[%emt 0:04:38]} 16. Bd2 {[%emt 0:04:25]} ({Doch nicht} 16. Nxg4 Bxe2 17. Qc2 Bxg4 $17) 16... h5 {[%emt 0:00:05]} 17. Rc1 {[%emt 0:12:18]} Re6 {[%emt 0:01:37]} 18. Bf3 {[%emt 0:00:51]} (18. Re1 {hält die Spannung aufrecht.} Qf6 19. Nxg4 hxg4 20. e4) 18... Nxe3 {[%emt 0:07:06]} 19. Bxe3 {[%emt 0:00:38]} g6 {[%emt 0:00:02]} 20. Rc3 {[%emt 0:04:21]} Nf6 {[%emt 0:02:01]} 21. Bg5 {[%emt 0:02:50]} Qd6 {[%emt 0:04:18] Die Stellung ist ausgeglichen.} 22. Bxf6 {[%emt 0:02:34]} Rxf6 {[%emt 0:00:20]} 23. a4 {[%emt 0:04:56]} Re8 {[%emt 0:09:38]} 24. h4 {[%emt 0:01:31]} Rxf3 {[%emt 0:17:25]} 25. exf3 {[%emt 0:00:06]} Bxf1 {[%emt 0:00:06]} 26. Qxf1 $11 {[%emt 0:00:22][%mdl 4096] Endspiel. KQR-KQR} Qb4 {[%emt 0:03:22][%csl LRc3,LRd4]} 27. Qd3 {[%emt 0:04:04]} Re1+ {[%emt 0:04:17]} 28. Kg2 {[%emt 0:01:57]} c5 {[%emt 0:00:05]} 29. dxc5 {[%emt 0:01:37]} bxc5 {[%emt 0:00:04]} 30. Rc2 {[%emt 0:02:41]} Rb1 {[%emt 0:07:12] [#] ( -> ...Qe1)} 31. Qe3 {[%emt 0:01:26]} (31. Qxd5 Qe1 32. g4 hxg4 (32... Qh1+ $2 33. Kg3 $19) 33. Qa8+ Kg7 $19) 31... Qd4 {[%emt 0:08:03]} 32. Qxd4 {[%emt 0:01:57]} cxd4 {[%emt 0:00:27] Gewichteter Fehlerwert: Weiß=0.04 (makellos) /Schwarz=0.05 (makellos) .  Ungenau:       	Weiß=3     	Schwarz=2     OK:         	Weiß=10    	Schwarz=7} 1/2-1/2

[Event "40th Cappelle Open 2024"]
[Site "Cappelle-la-Grande"]
[Date "2024.03.06"]
[Round "6.2"]
[White "Lamard, Guillaume"]
[Black "Sasikiran, Krishnan"]
[Result "1-0"]
[ECO "C83"]
[WhiteElo "2483"]
[BlackElo "2578"]
[Annotator "TA"]
[PlyCount "99"]
[EventDate "2024.03.02"]
[EventType "swiss"]
[EventCountry "FRA"]
[SourceTitle "playchess.com"]
[Source "ChessBase"]
[SourceQuality "1"]
[TimeControl "40/5400+30:1800+30"]

{[%evp 30,99,32,37,44,7,37,49,55,39,52,0,57,0,-32,-30,37,39,43,0,74,66,93,10,0,5,6,15,6,11,23,24,39,0,0,18,15,12,120,115,96,105,230,100,152,164,506,482,475,435,436,400,373,381,894,889,895,895,894,867,3204,1884,1798,1364,3893,3275,2037,2027,29982,29983,29983,29984]} 1. e4 {[%emt 0:01:11]} e5 {[%emt 0:05:46]} 2. Nf3 {[%emt 0:00:08]} Nc6 {[%emt 0:00:08]} 3. Bb5 {[%emt 0:00:03]} a6 {[%emt 0:00:49]} 4. Ba4 {[%emt 0:00:05]} Nf6 {[%emt 0:02:49]} 5. O-O {[%emt 0:00:19]} Nxe4 {[%emt 0:02:09]} 6. d4 {[%emt 0:02:01]} b5 {[%emt 0:03:55]} 7. Bb3 {[%emt 0:00:05]} d5 {[%emt 0:00:07]} 8. dxe5 {[%emt 0:00:16]} Be6 {[%emt 0:00:13]} 9. c3 {[%emt 0:00:41]} Be7 {[%emt 0:05:21] is the new trend.} 10. Bc2 {[%emt 0:00:43]} Bg4 {[%emt 0:11:47] C83: Open Ruy Lopez: 9 c3 Be7.} 11. Qe1 {[%emt 0:00:43]} O-O {[%emt 0:06:51]} 12. Nd4 {[%emt 0:01:10]} Nxe5 {[%emt 0:07:17]} 13. f3 {[%emt 0:14:00]} c5 {[%emt 0:01:42]} 14. Ne2 {[%emt 0:05:39]} Bh4 {[%emt 0:05:36]} 15. Ng3 {[%emt 0:14:50]} f5 $146 {[%emt 0:07:18]} ({Predecessor:} 15... Re8 16. fxe4 dxe4 17. Be3 Nd3 18. Bxd3 exd3 19. Qf2 f5 20. Nd2 Be2 21. Rfe1 g5 {½-½ Vachier Lagrave,M (2761)-Mamedyarov,S (2767) Belgrade FIDE GP 2 Pool-D 2022 (2)}) 16. fxe4 {[%emt 0:14:13]} (16. fxg4 Nxg4 17. Bxe4 dxe4 $15 (17... fxe4 18. Nd2 $11)) 16... dxe4 {[%emt 0:05:18]} 17. Be3 {[%emt 0:06:56]} c4 {[%emt 0:11:38]} 18. a4 {[%emt 0:07:19]} Nd3 {[%emt 0:08:52]} 19. Bxd3 {[%emt 0:00:40]} cxd3 {[%emt 0:05:16]} 20. Rf4 {[%emt 0:06:10]} (20. Nd2 $14) 20... bxa4 {[%emt 0:02:56] [#]} (20... Qd7 $11) 21. Rxg4 {[%emt 0:02:55]} (21. Rxa4 $1 $14 h5 (21... Qd7 22. Rd4) 22. Nd2) 21... fxg4 $15 {[%emt 0:00:58]} 22. Rxa4 {[%emt 0:00:06]} Qd5 {[%emt 0:02:28]} (22... Rb8 $11 23. Qc1 Bxg3 24. hxg3 Qd6) 23. Nd2 $1 $14 {[%emt 0:01:08]} Rfe8 {[%emt 0:01:03]} 24. Qf1 {[%emt 0:06:37]} Rf8 {[%emt 0:00:57]} (24... Bxg3 $1 $11 25. hxg3 Rab8) 25. Qd1 $16 {[%emt 0:01:44]} Bg5 {[%emt 0:00:35] [#]} 26. Bxg5 {[%emt 0:03:46]} ({White should play} 26. Qe1 $1 $16) 26... Qxg5 $11 {[%emt 0:00:04]} 27. Rxe4 {[%emt 0:00:05]} (27. Ndxe4 Qe3+ 28. Kh1 Rfe8 $15) 27... Rae8 {[%emt 0:00:51]} 28. Qe1 {[%emt 0:00:32]} Qc5+ {[%emt 0:00:56]} 29. Kh1 {[%emt 0:00:04]} Qb5 {[%emt 0:00:21]} 30. b3 {[%emt 0:03:08]} h5 {[%emt 0:00:27]} 31. c4 {[%emt 0:03:04]} Qd7 {[%emt 0:00:43]} 32. Rxe8 {[%emt 0:01:28]} (32. Nxh5 $2 {is the wrong capture.} Rxe4 33. Nxe4 (33. Qxe4 $2 Re8 $19) 33... d2 34. Nxd2 (34. Qxd2 $2 Rf1#) 34... Qxd2 35. Qe6+ (35. Nf6+ Rxf6 36. Qe8+ Rf8 37. h4 Rxe8 38. Kh2 Qf4+ 39. g3 Qf2+ 40. Kh1 Re1#) 35... Kh7 $19) 32... Rxe8 {[%emt 0:00:33]} 33. Nge4 {[%emt 0:00:07]} Rf8 {[%emt 0:00:35] [#]} ({But not} 33... Qd4 $2 34. Nf6+ gxf6 35. Qxe8+ $18) (33... h4 $11) 34. g3 $1 $16 {[%emt 0:01:22]} Qd4 {[%emt 0:00:27]} 35. Qg1 {[%emt 0:00:33]} Qb2 {[%emt 0:00:35]} (35... Qxg1+ $16 36. Kxg1 h4 37. gxh4 Kf7) 36. Qe3 {[%emt 0:02:14]} (36. Qc5 $18 {is the precise move to win.}) 36... Qc2 {[%emt 0:00:34]} (36... Qc1+ $142 37. Kg2 Rf3) 37. Kg2 $16 {[%emt 0:00:18]} Kh7 $2 {[%emt 0:00:32]} (37... Rf3 {is more resistant.} 38. Qg5 Qd1) 38. Qc5 $18 {[%emt 0:00:56]} Kg8 {[%emt 0:00:29]} 39. Qxh5 {[%emt 0:01:06]} Qd1 {[%emt 0:00:20]} 40. Qd5+ {[%emt 0:00:06]} Kh8 {[%emt 0:00:36]} 41. Qxd3 {[%emt 0:03:05]} Qe1 $2 {[%emt 0:02:40]} (41... Re8 42. Nc3 Qa1) 42. c5 $18 {[%emt 0:01:46]} a5 {[%emt 0:00:22]} 43. c6 {[%emt 0:01:27]} Qc1 {[%emt 0:00:21]} 44. Qc4 {[%emt 0:01:25]} Qe1 {[%emt 0:00:16]} 45. c7 {[%emt 0:01:42]} Rc8 {[%emt 0:00:05]} 46. Qd3 {[%emt 0:00:51]} Rf8 {[%emt 0:00:28]} 47. Qa6 {[%emt 0:02:42]} Qc1 {[%emt 0:00:38]} 48. Qxa5 {[%emt 0:02:22]} Rc8 {[%emt 0:00:22]} 49. Qh5+ {[%emt 0:00:18]} Kg8 {[%emt 0:00:07]} 50. Qd5+ {[%emt 0:00:15]} 1-0